[Event "RUS-chT Men Rapid 2019"]
[Site "Sochi"]
[Date "2019.10.19"]
[Round "9.18"]
[White "Lysyj, Igor"]
[Black "Triapishko, Alexandr"]
[Result "1-0"]
[ECO "D85"]
[WhiteElo "2596"]
[BlackElo "2514"]
[Annotator "ChessBase"]
[PlyCount "127"]
[EventDate "2019.10.18"]
[EventType "swiss"]
[EventCountry "RUS"]
[SourceTitle "playchess.com"]
[Source "ChessBase"]
[SourceQuality "1"]
[TimeControl "900+10"]

1. d4 {[%emt 0:00:00]} Nf6 {[%emt 0:00:00]} 2. c4 {[%emt 0:00:00]} g6 {[%emt 0:01:04]} 3. Nc3 {[%emt 0:00:00]} d5 {[%emt 0:00:02]} 4. cxd5 Nxd5 {[%emt 0:00:02]} 5. e4 {[%emt 0:00:05]} Nxc3 6. bxc3 {[%emt 0:00:03]} Bg7 {[%emt 0:00:05]} 7. Bg5 {[%emt 0:00:05]} c5 {[%emt 0:04:01]} 8. Rc1 {[%emt 0:00:01]} Qa5 {[%emt 0:00:31]} 9. Qd2 {[%emt 0:00:01]} h6 {[%emt 0:01:29]} 10. Be3 {[%emt 0:00:03]} cxd4 {[%emt 0:00:29]} 11. cxd4 {[%emt 0:00:01]} Qxd2+ {[%emt 0:00:10]} 12. Kxd2 {[%emt 0:00:02]} O-O {[%emt 0:00:02]} 13. Nf3 {[%emt 0:00:33]} Rd8 {[%emt 0:01:01]} 14. Bc4 {[%emt 0:00:31]} Nc6 {[%emt 0:03:19]} 15. Rhd1 {[%emt 0:00:07]} Na5 {[%emt 0:01:20]} 16. Be2 {[%emt 0:01:19]} f5 {[%emt 0:00:52]} 17. exf5 {[%emt 0:02:50]} Bxf5 {[%emt 0:00:12]} 18. Ke1 {[%emt 0:00:02]} Nc6 {[%emt 0:01:24]} 19. Ba6 {[%emt 0:08:03]} bxa6 {[%emt 0:00:57]} 20. Rxc6 {[%emt 0:00:01]} Rd6 {[%emt 0:00:08]} 21. Rc7 {[%emt 0:01:04]} Rd7 {[%emt 0:00:35]} 22. Rdc1 {[%emt 0:00:59]} Kf7 {[%emt 0:00:32]} 23. Ne5+ {[%emt 0:02:04]} Bxe5 {[%emt 0:00:02]} 24. dxe5 {[%emt 0:00:01]} g5 {[%emt 0:00:29]} 25. R1c6 {[%emt 0:00:17]} Rxc7 {[%emt 0:00:12]} 26. Rxc7 {[%emt 0:00:01]} Rc8 {[%emt 0:00:07]} 27. Rxa7 {[%emt 0:00:05]} Rc6 {[%emt 0:00:02]} 28. f3 {[%emt 0:00:17]} Ke6 {[%emt 0:00:16]} 29. a4 {[%emt 0:00:17]} Kxe5 {[%emt 0:00:11]} 30. Rxe7+ {[%emt 0:00:03]} Re6 {[%emt 0:00:08]} 31. Ra7 {[%emt 0:00:03]} Bc2 {[%emt 0:00:07]} 32. a5 {[%emt 0:00:05]} Bd3 {[%emt 0:00:03]} 33. Kf2 {[%emt 0:00:04]} Bb5 {[%emt 0:00:20]} 34. Rh7 {[%emt 0:00:37]} Rc6 {[%emt 0:00:14]} 35. Kg3 {[%emt 0:00:07]} Kf5 {[%emt 0:00:03]} 36. h4 {[%emt 0:00:23]} Kg6 {[%emt 0:00:15]} 37. Rh8 {[%emt 0:00:04]} Kf5 {[%emt 0:00:12]} 38. hxg5 {[%emt 0:00:27]} hxg5 {[%emt 0:00:01]} 39. Rf8+ {[%emt 0:00:07]} Rf6 {[%emt 0:00:05]} 40. Rd8 {[%emt 0:00:04]} Re6 {[%emt 0:00:12]} 41. Rd5+ {[%emt 0:00:33]} Re5 {[%emt 0:00:02]} 42. Rxe5+ {[%emt 0:00:02]} Kxe5 {[%emt 0:00:01]} 43. Bxg5 {[%emt 0:00:01]} Kf5 {[%emt 0:00:17]} 44. Be3 {[%emt 0:00:05]} Bc6 {[%emt 0:00:25]} 45. Kf2 {[%emt 0:00:04]} Kg6 {[%emt 0:00:11]} 46. g4 {[%emt 0:00:04]} Bb7 {[%emt 0:00:11]} 47. Kg3 {[%emt 0:00:19]} Bc6 {[%emt 0:00:03]} 48. Bc1 {[%emt 0:00:05]} Bb7 {[%emt 0:00:03]} 49. Ba3 {[%emt 0:00:03]} Bc6 {[%emt 0:00:18]} 50. f4 {[%emt 0:00:05]} Bd7 {[%emt 0:00:02]} 51. Bd6 {[%emt 0:00:06]} Bc8 {[%emt 0:00:07]} 52. Bc5 {[%emt 0:00:42]} Bd7 {[%emt 0:00:07]} 53. Bg1 {[%emt 0:00:02]} Bc8 {[%emt 0:00:34]} 54. Kf3 {[%emt 0:00:03]} Bb7+ {[%emt 0:00:13]} 55. Ke3 {[%emt 0:00:09]} Kf6 {[%emt 0:00:10]} 56. Bh2 {[%emt 0:00:10]} Bc6 {[%emt 0:00:09]} 57. Bg3 {[%emt 0:00:13]} Kg6 {[%emt 0:00:11]} 58. Bh4 {[%emt 0:00:06]} Bd7 {[%emt 0:00:11]} 59. f5+ {[%emt 0:00:07]} Bxf5 {[%emt 0:00:09]} 60. gxf5+ {[%emt 0:00:01]} Kxf5 {[%emt 0:00:01]} 61. Kd4 {[%emt 0:00:01]} Ke6 {[%emt 0:00:01]} 62. Kc5 {[%emt 0:00:02]} Kd7 {[%emt 0:00:01]} 63. Kb6 {[%emt 0:00:01]} Kc8 {[%emt 0:00:01]} 64. Bg3 {[%emt 0:00:00]} 1-0

[Event "RUS-chT Men Rapid 2019"]
[Site "Sochi"]
[Date "2019.10.19"]
[Round "9.19"]
[White "Moiseenko, Vadim"]
[Black "Gutenev, Alexander"]
[Result "1-0"]
[ECO "B89"]
[WhiteElo "2532"]
[BlackElo "2469"]
[Annotator "ChessBase"]
[PlyCount "61"]
[EventDate "2019.10.18"]
[EventType "swiss"]
[EventCountry "RUS"]
[SourceTitle "playchess.com"]
[Source "ChessBase"]
[SourceQuality "1"]
[TimeControl "900+10"]

1. e4 {[%emt 0:00:00]} c5 {[%emt 0:00:00]} 2. Nf3 {[%emt 0:00:00]} Nc6 {[%emt 0:00:00]} 3. d4 {[%emt 0:00:19]} cxd4 {[%emt 0:00:00]} 4. Nxd4 {[%emt 0:00:01]} Nf6 {[%emt 0:00:00]} 5. Nc3 {[%emt 0:00:02]} d6 {[%emt 0:00:00]} 6. Bc4 {[%emt 0:00:03]} e6 {[%emt 0:00:00]} 7. Be3 {[%emt 0:00:05]} a6 {[%emt 0:00:01]} 8. Qe2 {[%emt 0:00:18]} Qc7 {[%emt 0:00:01]} 9. f4 {[%emt 0:00:53]} Na5 {[%emt 0:00:27]} 10. Bd3 {[%emt 0:00:05]} Be7 {[%emt 0:00:33]} 11. g4 {[%emt 0:00:30]} b5 {[%emt 0:03:09]} 12. g5 {[%emt 0:00:28]} Nd7 {[%emt 0:00:02]} 13. O-O-O {[%emt 0:02:15]} b4 {[%emt 0:00:38]} 14. Nb1 {[%emt 0:00:01]} Nc5 {[%emt 0:00:55]} 15. Nd2 {[%emt 0:00:09]} Bb7 {[%emt 0:01:07]} 16. Kb1 {[%emt 0:00:02]} d5 {[%emt 0:00:35]} 17. e5 {[%emt 0:00:41]} Nc4 {[%emt 0:00:31]} 18. f5 {[%emt 0:06:55]} Nxb2 {[%emt 0:03:30]} 19. Kxb2 {[%emt 0:00:03]} Na4+ {[%emt 0:00:02]} 20. Kc1 {[%emt 0:00:01]} Nc3 {[%emt 0:04:16]} 21. Qh5 {[%emt 0:00:10]} b3 {[%emt 0:01:34]} 22. N2xb3 {[%emt 0:00:23]} Qxe5 {[%emt 0:00:14]} 23. Rde1 {[%emt 0:01:36]} Ba3+ {[%emt 0:00:01]} 24. Kd2 {[%emt 0:00:01]} Bb4 {[%emt 0:00:01]} 25. fxe6 {[%emt 0:00:23]} O-O-O {[%emt 0:00:38]} 26. exf7 {[%emt 0:00:14]} Nxa2+ {[%emt 0:00:10]} 27. Ke2 {[%emt 0:00:19]} Rd7 {[%emt 0:00:34]} 28. Bf5 {[%emt 0:00:46]} Nc3+ {[%emt 0:00:08]} 29. Kf3 {[%emt 0:00:20]} Rf8 {[%emt 0:00:27]} 30. Bxd7+ {[%emt 0:00:26]} Kxd7 {[%emt 0:00:01]} 31. Bf4 {[%emt 0:00:02]} 1-0

[Event "RUS-chT Men Rapid 2019"]
[Site "Sochi"]
[Date "2019.10.19"]
[Round "9.20"]
[White "Radzhabov, Rodion"]
[Black "Rozum, Ivan"]
[Result "0-1"]
[ECO "B10"]
[WhiteElo "2404"]
[BlackElo "2599"]
[Annotator "ChessBase"]
[PlyCount "98"]
[EventDate "2019.10.18"]
[EventType "swiss"]
[EventCountry "RUS"]
[SourceTitle "playchess.com"]
[Source "ChessBase"]
[SourceQuality "1"]
[TimeControl "900+10"]

1. e4 {[%emt 0:00:00]} c6 {[%emt 0:00:00]} 2. Nc3 {[%emt 0:00:00]} d5 {[%emt 0:00:00]} 3. Qe2 {[%emt 0:00:00]} d4 {[%emt 0:00:10]} 4. Nd1 {[%emt 0:00:00]} e5 {[%emt 0:00:01]} 5. g3 {[%emt 0:00:02]} c5 {[%emt 0:00:05]} 6. d3 {[%emt 0:00:03]} Bd6 {[%emt 0:00:14]} 7. f4 {[%emt 0:00:02]} Nc6 {[%emt 0:00:08]} 8. Nf3 {[%emt 0:00:02]} exf4 9. gxf4 {[%emt 0:00:02]} f6 {[%emt 0:00:29]} 10. Bg2 {[%emt 0:02:20]} Nge7 {[%emt 0:00:06]} 11. O-O {[%emt 0:02:11]} Qc7 {[%emt 0:00:11]} 12. e5 {[%emt 0:05:43]} fxe5 {[%emt 0:00:03]} 13. fxe5 {[%emt 0:00:01]} Nxe5 {[%emt 0:00:13]} 14. Nxe5 {[%emt 0:00:01]} Bxe5 {[%emt 0:00:01]} 15. Bg5 {[%emt 0:00:10]} Bxh2+ {[%emt 0:04:56]} 16. Kh1 {[%emt 0:00:02]} Qe5 {[%emt 0:00:02]} 17. Qh5+ {[%emt 0:01:38]} g6 {[%emt 0:00:06]} 18. Qxh2 {[%emt 0:00:08]} Qxg5 {[%emt 0:00:02]} 19. Nf2 {[%emt 0:00:02]} Bf5 {[%emt 0:00:35]} 20. Bxb7 {[%emt 0:01:23]} Rd8 {[%emt 0:00:19]} 21. Ne4 {[%emt 0:00:28]} Bxe4+ {[%emt 0:00:44]} 22. Bxe4 {[%emt 0:00:01]} Kd7 {[%emt 0:03:34]} 23. b4 {[%emt 0:02:35]} cxb4 {[%emt 0:00:56]} 24. a3 {[%emt 0:00:02]} b3 {[%emt 0:00:59]} 25. cxb3 {[%emt 0:00:13]} Rhf8 {[%emt 0:00:53]} 26. b4 {[%emt 0:01:13]} Rc8 {[%emt 0:00:39]} 27. Qh3+ {[%emt 0:00:48]} Kd6 {[%emt 0:00:05]} 28. Qh2+ {[%emt 0:00:04]} Qe5 {[%emt 0:00:07]} 29. Rxf8 {[%emt 0:00:22]} Rxf8 {[%emt 0:00:01]} 30. Rc1 {[%emt 0:00:12]} Qxh2+ {[%emt 0:02:07]} 31. Kxh2 {[%emt 0:00:01]} Rf2+ {[%emt 0:00:02]} 32. Kg3 {[%emt 0:00:00]} Ra2 {[%emt 0:00:01]} 33. Rc4 {[%emt 0:00:01]} Rxa3 {[%emt 0:00:06]} 34. Rxd4+ {[%emt 0:00:01]} Ke6 {[%emt 0:00:08]} 35. b5 {[%emt 0:00:29]} Nf5+ {[%emt 0:00:44]} 36. Bxf5+ {[%emt 0:00:01]} Kxf5 {[%emt 0:00:01]} 37. Kh4 {[%emt 0:00:30]} Ra1 {[%emt 0:01:19]} 38. Rd7 {[%emt 0:00:01]} g5+ {[%emt 0:00:13]} 39. Kg3 {[%emt 0:00:04]} h5 {[%emt 0:00:02]} 40. Rd5+ {[%emt 0:00:08]} Kf6 {[%emt 0:00:01]} 41. Rd6+ {[%emt 0:00:11]} Ke5 {[%emt 0:00:01]} 42. Rh6 {[%emt 0:00:30]} h4+ {[%emt 0:00:01]} 43. Kf3 {[%emt 0:00:07]} Kf5 {[%emt 0:00:13]} 44. Ke3 {[%emt 0:00:16]} Kg4 {[%emt 0:00:17]} 45. d4 {[%emt 0:00:01]} h3 {[%emt 0:00:24]} 46. d5 {[%emt 0:00:10]} Kg3 {[%emt 0:00:07]} 47. d6 {[%emt 0:00:11]} h2 {[%emt 0:00:05]} 48. d7 {[%emt 0:00:19]} Rd1 {[%emt 0:00:02]} 49. Rh7 {[%emt 0:00:09]} Rxd7 {[%emt 0:00:13] Kd4} 0-1

[Event "RUS-chT Men Rapid 2019"]
[Site "Sochi"]
[Date "2019.10.19"]
[Round "9.21"]
[White "Kardashevskiy, Evgeny"]
[Black "Zakhartsov, Vladimir"]
[Result "1/2-1/2"]
[ECO "E63"]
[WhiteElo "2428"]
[BlackElo "2514"]
[Annotator "ChessBase"]
[PlyCount "90"]
[EventDate "2019.10.18"]
[EventType "swiss"]
[EventCountry "RUS"]
[SourceTitle "playchess.com"]
[Source "ChessBase"]
[SourceQuality "1"]
[TimeControl "900+10"]

1. d4 {[%emt 0:00:00]} Nf6 {[%emt 0:00:00]} 2. Nf3 {[%emt 0:00:00]} g6 {[%emt 0:00:00]} 3. c4 {[%emt 0:00:00]} Bg7 {[%emt 0:00:00]} 4. g3 {[%emt 0:00:01]} O-O {[%emt 0:00:00]} 5. Bg2 {[%emt 0:00:01]} d6 {[%emt 0:00:02]} 6. O-O {[%emt 0:00:04]} Nc6 {[%emt 0:00:01]} 7. Nc3 {[%emt 0:00:13]} a6 {[%emt 0:00:02]} 8. Re1 {[%emt 0:00:12]} Rb8 {[%emt 0:00:15]} 9. Rb1 {[%emt 0:00:06]} Bf5 {[%emt 0:00:16]} 10. e4 {[%emt 0:00:08]} Bg4 {[%emt 0:00:02]} 11. h3 {[%emt 0:01:05]} Bxf3 {[%emt 0:00:09]} 12. Bxf3 {[%emt 0:00:02]} Nd7 {[%emt 0:00:18]} 13. Be3 {[%emt 0:00:03]} e5 {[%emt 0:00:04]} 14. d5 {[%emt 0:00:01]} Nd4 {[%emt 0:00:02]} 15. Bg2 {[%emt 0:00:03]} c5 {[%emt 0:00:15]} 16. dxc6 {[%emt 0:00:17]} bxc6 {[%emt 0:00:03]} 17. b4 {[%emt 0:00:13]} c5 {[%emt 0:00:36]} 18. a3 {[%emt 0:00:31]} Rc8 {[%emt 0:00:13]} 19. Bf1 {[%emt 0:02:29]} cxb4 {[%emt 0:01:35]} 20. axb4 {[%emt 0:00:30]} Nb6 {[%emt 0:00:32]} 21. c5 {[%emt 0:01:20]} dxc5 {[%emt 0:00:08]} 22. Bxa6 {[%emt 0:00:57]} cxb4 {[%emt 0:00:38]} 23. Bxd4 {[%emt 0:00:40]} exd4 {[%emt 0:00:47]} 24. Nd5 {[%emt 0:02:43]} Nxd5 {[%emt 0:01:06]} 25. exd5 {[%emt 0:00:02]} Rc3 {[%emt 0:00:30]} 26. Rxb4 {[%emt 0:00:53]} Qd6 {[%emt 0:00:58]} 27. Ra4 {[%emt 0:00:50]} Qxd5 {[%emt 0:00:10]} 28. Bd3 {[%emt 0:00:10]} Qd7 {[%emt 0:00:41]} 29. Bf1 {[%emt 0:00:53]} Rd8 {[%emt 0:02:09]} 30. Ra2 {[%emt 0:01:01]} Bh6 {[%emt 0:01:17]} 31. Qa1 {[%emt 0:01:20]} Qc8 {[%emt 0:02:16]} 32. Ra7 {[%emt 0:00:35]} d3 {[%emt 0:01:15]} 33. Qa2 {[%emt 0:00:01]} Qc4 {[%emt 0:00:51]} 34. Qa5 {[%emt 0:00:02]} Rd5 {[%emt 0:01:20]} 35. Qb6 {[%emt 0:00:36]} Bf8 {[%emt 0:01:19]} 36. Re8 {[%emt 0:00:33]} Qc5 {[%emt 0:00:48]} 37. Qxc5 {[%emt 0:02:21]} Rcxc5 {[%emt 0:00:01]} 38. Raa8 {[%emt 0:00:13]} d2 {[%emt 0:00:18]} 39. Rxf8+ {[%emt 0:00:05]} Kg7 {[%emt 0:00:01]} 40. Rg8+ {[%emt 0:00:03]} Kh6 {[%emt 0:00:18]} 41. Be2 {[%emt 0:00:02]} Rc1+ {[%emt 0:00:18]} 42. Kg2 {[%emt 0:00:02]} d1=Q {[%emt 0:00:14]} 43. Bxd1 {[%emt 0:00:02]} Rcxd1 {[%emt 0:00:02]} 44. Ra4 {[%emt 0:00:07]} R1d4 {[%emt 0:00:07]} 45. Rxd4 {[%emt 0:00:01]} Rxd4 {[%emt 0:00:01]} 1/2-1/2

[Event "RUS-chT Men Rapid 2019"]
[Site "Sochi"]
[Date "2019.10.19"]
[Round "9.22"]
[White "Bryakin, Mikhail"]
[Black "Suleymenov, Alisher"]
[Result "1-0"]
[ECO "A56"]
[WhiteElo "2440"]
[BlackElo "2370"]
[Annotator "NA"]
[PlyCount "115"]
[EventDate "2019.10.18"]
[EventType "swiss"]
[EventCountry "RUS"]
[SourceTitle "playchess.com"]
[Source "ChessBase"]
[SourceQuality "1"]
[TimeControl "900+10"]

1. d4 {[%emt 0:00:00]} Nf6 {[%emt 0:00:00]} 2. c4 {[%emt 0:00:00]} c5 {[%emt 0:00:47]} 3. d5 {[%emt 0:00:00]} g6 {[%emt 0:00:01]} 4. Nc3 {[%emt 0:00:02]} Bg7 {[%emt 0:00:01]} 5. Nf3 {[%emt 0:00:15]} O-O {[%emt 0:00:03]} 6. g3 {[%emt 0:00:01]} d6 {[%emt 0:00:03]} 7. Bg2 {[%emt 0:00:01]} Na6 {[%emt 0:00:01]} 8. O-O {[%emt 0:00:09]} Nc7 {[%emt 0:00:01]} 9. e4 {[%emt 0:00:08]} b5 10. cxb5 {[%emt 0:00:19]} Rb8 {[%emt 0:02:38]} 11. a4 {[%emt 0:00:04]} a6 {[%emt 0:00:04]} 12. e5 {[%emt 0:00:15]} Ng4 {[%emt 0:00:31]} 13. exd6 {[%emt 0:01:51]} exd6 {[%emt 0:00:03]} 14. bxa6 {[%emt 0:01:39]} Bxa6 {[%emt 0:00:25]} 15. Re1 {[%emt 0:00:01]} Bc4 {[%emt 0:01:05]} 16. Ra3 {[%emt 0:03:17]} Re8 {[%emt 0:02:49]} 17. Rxe8+ {[%emt 0:01:25]} Qxe8 {[%emt 0:00:04]} 18. h3 {[%emt 0:00:14]} Nf6 {[%emt 0:03:17]} 19. Nd2 {[%emt 0:01:21]} Bd3 {[%emt 0:00:02]} 20. Nf3 {[%emt 0:00:54]} c4 {[%emt 0:01:47]} 21. Ne1 {[%emt 0:01:43]} Bf5 {[%emt 0:00:07]} 22. g4 {[%emt 0:00:01]} Bd7 {[%emt 0:00:48]} 23. Nc2 {[%emt 0:00:18]} h5 {[%emt 0:00:25]} 24. g5 {[%emt 0:01:12]} Nh7 {[%emt 0:00:02]} 25. h4 {[%emt 0:00:01]} Bf5 {[%emt 0:00:20]} 26. Ne3 {[%emt 0:00:15]} Bd3 {[%emt 0:00:01]} 27. Bf1 {[%emt 0:00:08]} Qe5 {[%emt 0:02:33]} 28. Bxd3 {[%emt 0:00:57]} cxd3 {[%emt 0:00:01]} 29. Qxd3 {[%emt 0:00:01]} Rb4 {[%emt 0:00:05]} 30. Ng2 {[%emt 0:00:19]} Rd4 {[%emt 0:00:24]} 31. Qf3 {[%emt 0:00:35]} Rg4 {[%emt 0:01:07]} 32. Bf4 {[%emt 0:01:27]} Qf5 {[%emt 0:00:21]} 33. Qe4 {[%emt 0:00:32]} Qxe4 {[%emt 0:00:11]} 34. Nxe4 {[%emt 0:00:01]} Nxd5 {[%emt 0:00:01]} 35. f3 {[%emt 0:00:16]} Rxg2+ {[%emt 0:00:02]} 36. Kxg2 {[%emt 0:00:00]} Nxf4+ 37. Kg3 Bxb2 {[%emt 0:00:19]} 38. Ra2 {[%emt 0:00:19]} Be5 {[%emt 0:00:06]} 39. a5 {[%emt 0:00:03]} Nd5+ {[%emt 0:00:18]} 40. Kg2 {[%emt 0:00:04]} Nb4 {[%emt 0:00:20]} 41. a6 {[%emt 0:00:12]} Nc6 {[%emt 0:00:20]} 42. Rc2 {[%emt 0:00:16]} Na7 {[%emt 0:00:03]} 43. Rc7 {[%emt 0:00:01]} Bd4 {[%emt 0:00:16]} 44. Nxd6 {[%emt 0:00:03]} f6 {[%emt 0:00:08]} 45. Nc8 {[%emt 0:00:38]} Nxc8 {[%emt 0:00:16]} 46. Rxc8+ {[%emt 0:00:01]} Kf7 {[%emt 0:00:03]} 47. Rc7+ {[%emt 0:00:23]} Kg8 {[%emt 0:00:01]} 48. gxf6 {[%emt 0:00:12]} Nxf6 {[%emt 0:00:12]} 49. a7 {[%emt 0:00:05]} Bxa7 {[%emt 0:00:01]} 50. Rxa7 {[%emt 0:00:01]} Nd5 {[%emt 0:00:30]} 51. Kg3 {[%emt 0:00:08]} Kf8 {[%emt 0:00:01]} 52. Rb7 {[%emt 0:00:05]} Kg8 {[%emt 0:00:03]} 53. Rb5 {[%emt 0:00:06]} Nf6 {[%emt 0:00:27]} 54. Kf4 {[%emt 0:00:02]} Kf7 {[%emt 0:00:02]} 55. Kg5 {[%emt 0:00:06]} Nh7+ {[%emt 0:00:01]} 56. Kh6 {[%emt 0:00:03]} Nf8 {[%emt 0:00:03]} 57. Rb6 {[%emt 0:00:08]} Nd7 {[%emt 0:00:24]} 58. Rb7 {[%emt 0:00:04]} 1-0

[Event "RUS-chT Men Rapid 2019"]
[Site "Sochi"]
[Date "2019.10.19"]
[Round "9.23"]
[White "Cherednichenko, Dmitrij"]
[Black "Golubov, Saveliy"]
[Result "0-1"]
[ECO "E94"]
[WhiteElo "2275"]
[BlackElo "2469"]
[Annotator "ChessBase"]
[PlyCount "114"]
[EventDate "2019.10.18"]
[EventType "swiss"]
[EventCountry "RUS"]
[SourceTitle "playchess.com"]
[Source "ChessBase"]
[SourceQuality "1"]
[TimeControl "900+10"]

1. d4 {[%emt 0:00:00]} g6 {[%emt 0:00:00]} 2. c4 {[%emt 0:00:00]} Nf6 {[%emt 0:00:00]} 3. Nc3 {[%emt 0:00:01]} Bg7 {[%emt 0:00:00]} 4. e4 {[%emt 0:00:02]} O-O {[%emt 0:00:00]} 5. Nf3 {[%emt 0:00:04]} d6 {[%emt 0:00:00]} 6. Be2 {[%emt 0:00:02]} e5 {[%emt 0:00:00]} 7. O-O {[%emt 0:00:02]} Nbd7 {[%emt 0:00:00]} 8. Qc2 {[%emt 0:00:15]} exd4 {[%emt 0:00:00]} 9. Nxd4 {[%emt 0:00:02]} Re8 {[%emt 0:00:01]} 10. Be3 {[%emt 0:00:24]} a5 {[%emt 0:00:11]} 11. f3 {[%emt 0:00:17]} Nc5 {[%emt 0:00:55]} 12. Rad1 {[%emt 0:00:26]} Qe7 {[%emt 0:01:44]} 13. Rfe1 {[%emt 0:00:28]} c6 {[%emt 0:00:08]} 14. Bf1 {[%emt 0:00:26]} a4 {[%emt 0:00:28]} 15. b4 {[%emt 0:00:57]} axb3 {[%emt 0:00:02]} 16. axb3 {[%emt 0:00:01]} Ne6 {[%emt 0:00:50]} 17. Nde2 {[%emt 0:00:17]} Bd7 {[%emt 0:00:50]} 18. b4 {[%emt 0:00:15]} Ra3 {[%emt 0:00:21]} 19. Bc1 {[%emt 0:00:38]} Raa8 {[%emt 0:00:11]} 20. Qd3 {[%emt 0:00:27]} Red8 {[%emt 0:00:07]} 21. f4 {[%emt 0:01:48]} Be8 {[%emt 0:02:49]} 22. Be3 {[%emt 0:01:05]} Qc7 {[%emt 0:01:20]} 23. h3 {[%emt 0:02:27]} h6 {[%emt 0:01:10]} 24. Kh1 {[%emt 0:00:08]} Ra3 {[%emt 0:01:34]} 25. Qc2 {[%emt 0:00:10]} Nf8 {[%emt 0:00:22]} 26. Bf2 {[%emt 0:00:25]} g5 {[%emt 0:00:10]} 27. fxg5 {[%emt 0:01:22]} hxg5 {[%emt 0:00:02]} 28. Qc1 {[%emt 0:00:03]} Rb3 {[%emt 0:00:33]} 29. Qxg5 {[%emt 0:01:17]} Ne6 {[%emt 0:00:02]} 30. Qd2 {[%emt 0:00:11]} Rxb4 {[%emt 0:00:08]} 31. Nb5 {[%emt 0:02:23]} Qa5 {[%emt 0:01:03]} 32. Ra1 {[%emt 0:01:52]} Nxe4 {[%emt 0:00:16]} 33. Rxa5 {[%emt 0:00:08]} Nxd2 {[%emt 0:00:02]} 34. Nbd4 {[%emt 0:00:49]} Nxf1 {[%emt 0:00:03]} 35. Rxf1 {[%emt 0:00:12]} Rxc4 {[%emt 0:00:02]} 36. Nf5 {[%emt 0:00:01]} d5 {[%emt 0:01:07]} 37. Bb6 {[%emt 0:00:08]} Rb8 {[%emt 0:00:15]} 38. Ne7+ {[%emt 0:00:47]} Kh7 {[%emt 0:00:13]} 39. Ng3 {[%emt 0:00:21]} Rb4 {[%emt 0:00:16]} 40. Be3 {[%emt 0:00:10]} Be5 {[%emt 0:00:28]} 41. Ngf5 {[%emt 0:00:15]} Ng7 {[%emt 0:00:08]} 42. Bc5 {[%emt 0:00:11]} Nxf5 {[%emt 0:00:25]} 43. Nxf5 {[%emt 0:00:16]} b6 {[%emt 0:00:45]} 44. Bxb4 {[%emt 0:00:23]} bxa5 {[%emt 0:00:00]} 45. Bxa5 {[%emt 0:00:02]} c5 {[%emt 0:00:01]} 46. Re1 {[%emt 0:00:01]} f6 {[%emt 0:00:05]} 47. Ne7 {[%emt 0:00:08]} d4 {[%emt 0:00:13]} 48. Kg1 {[%emt 0:00:27]} c4 {[%emt 0:00:05]} 49. Nd5 {[%emt 0:00:04]} Bf7 {[%emt 0:00:12]} 50. Nb4 {[%emt 0:00:27]} Rb5 {[%emt 0:00:14]} 51. Nc6 {[%emt 0:00:02]} Bg3 {[%emt 0:00:05]} 52. Rf1 {[%emt 0:00:09]} Bd5 {[%emt 0:00:25]} 53. Be1 {[%emt 0:00:19]} Rb2 {[%emt 0:00:25]} 54. Bxg3 {[%emt 0:00:14]} Rxg2+ {[%emt 0:00:03]} 55. Kh1 {[%emt 0:00:01]} Rxg3+ {[%emt 0:00:01]} 56. Kh2 {[%emt 0:00:01]} Rg2+ {[%emt 0:00:02]} 57. Kh1 {[%emt 0:00:01]} Rf2+ {[%emt 0:00:01]} 0-1

[Event "RUS-chT Men Rapid 2019"]
[Site "Sochi"]
[Date "2019.10.19"]
[Round "9.24"]
[White "Apryshko, Gleb"]
[Black "Navrodskiy, Boris"]
[Result "1-0"]
[ECO "A00"]
[WhiteElo "2382"]
[BlackElo "2197"]
[Annotator "NA"]
[PlyCount "63"]
[EventDate "2019.10.18"]
[EventType "swiss"]
[EventCountry "RUS"]
[SourceTitle "playchess.com"]
[Source "ChessBase"]
[SourceQuality "1"]
[TimeControl "900+10"]

1. g3 {[%emt 0:00:00]} Nf6 {[%emt 0:00:00]} 2. Bg2 {[%emt 0:00:00]} d5 {[%emt 0:00:00]} 3. d3 {[%emt 0:00:04]} Bg4 {[%emt 0:00:00]} 4. Nd2 {[%emt 0:00:08]} Nbd7 {[%emt 0:00:02]} 5. Ngf3 {[%emt 0:00:02]} e6 {[%emt 0:00:03]} 6. O-O {[%emt 0:00:02]} Bd6 {[%emt 0:00:03]} 7. Qe1 {[%emt 0:00:22]} O-O {[%emt 0:00:18]} 8. e4 {[%emt 0:00:07]} dxe4 {[%emt 0:01:40]} 9. dxe4 {[%emt 0:00:02]} Bxf3 {[%emt 0:01:30]} 10. Nxf3 {[%emt 0:00:02]} e5 {[%emt 0:00:04]} 11. a4 {[%emt 0:00:16]} c6 {[%emt 0:00:11]} 12. Nd2 {[%emt 0:00:14]} Re8 {[%emt 0:00:16]} 13. Nc4 {[%emt 0:00:04]} Bc7 {[%emt 0:00:02]} 14. Qe2 {[%emt 0:00:21]} Qe7 {[%emt 0:00:20]} 15. b3 {[%emt 0:00:15]} a5 {[%emt 0:00:46]} 16. Bh3 {[%emt 0:00:26]} Nc5 {[%emt 0:00:23]} 17. f3 {[%emt 0:00:12]} Red8 {[%emt 0:01:13]} 18. Ba3 {[%emt 0:00:09]} b5 {[%emt 0:00:44]} 19. Qf2 {[%emt 0:00:05]} b4 {[%emt 0:00:17]} 20. Bb2 {[%emt 0:00:06]} Nfd7 {[%emt 0:00:21]} 21. Rad1 {[%emt 0:00:25]} Nb6 {[%emt 0:01:20]} 22. Rxd8+ {[%emt 0:00:06]} Rxd8 {[%emt 0:00:11]} 23. Nxa5 {[%emt 0:00:07]} Nbxa4 {[%emt 0:00:26]} 24. Nxc6 {[%emt 0:00:02]} Qe8 {[%emt 0:00:08]} 25. Nxd8 {[%emt 0:00:05]} Nxb2 {[%emt 0:00:05]} 26. Qxc5 {[%emt 0:00:16]} Qxd8 {[%emt 0:00:02]} 27. Qd5 {[%emt 0:00:15]} Qxd5 {[%emt 0:00:24]} 28. exd5 {[%emt 0:00:01]} Bb6+ {[%emt 0:00:03]} 29. Kg2 {[%emt 0:00:01]} Kf8 {[%emt 0:00:01]} 30. d6 {[%emt 0:00:05]} Bc5 {[%emt 0:01:15]} 31. Ra1 {[%emt 0:00:05]} Bxd6 {[%emt 0:00:09]} 32. Rb1 {[%emt 0:00:01]} 1-0

[Event "RUS-chT Men Rapid 2019"]
[Site "Sochi"]
[Date "2019.10.19"]
[Round "9.25"]
[White "Nozdrachev, Vladislav"]
[Black "Smirnov, Timofey"]
[Result "1/2-1/2"]
[ECO "C50"]
[WhiteElo "2494"]
[BlackElo "2354"]
[Annotator "ChessBase"]
[PlyCount "50"]
[EventDate "2019.10.18"]
[EventType "swiss"]
[EventCountry "RUS"]
[SourceTitle "playchess.com"]
[Source "ChessBase"]
[SourceQuality "1"]
[TimeControl "900+10"]

1. e4 {[%emt 0:00:00]} e5 {[%emt 0:00:00]} 2. Nf3 {[%emt 0:00:00]} Nc6 {[%emt 0:00:00]} 3. Bc4 {[%emt 0:00:00]} Bc5 {[%emt 0:00:00]} 4. d3 {[%emt 0:00:00]} Nf6 {[%emt 0:00:00]} 5. O-O {[%emt 0:00:04]} O-O {[%emt 0:00:03]} 6. a4 {[%emt 0:00:02]} a5 {[%emt 0:00:12]} 7. c3 {[%emt 0:00:04]} d6 {[%emt 0:00:09]} 8. Nbd2 {[%emt 0:00:03]} Ba7 {[%emt 0:01:12]} 9. h3 {[%emt 0:00:36]} Ne7 {[%emt 0:00:19]} 10. Re1 {[%emt 0:00:11]} Ng6 {[%emt 0:00:02]} 11. Nf1 {[%emt 0:01:09]} c6 {[%emt 0:00:02]} 12. Bb3 {[%emt 0:00:05]} Re8 {[%emt 0:00:31]} 13. Ng3 {[%emt 0:00:08]} h6 {[%emt 0:00:07]} 14. d4 {[%emt 0:00:09]} Be6 {[%emt 0:01:40]} 15. Bc2 {[%emt 0:01:01]} Qc7 {[%emt 0:00:03]} 16. Be3 {[%emt 0:00:05]} Rad8 {[%emt 0:01:07]} 17. Qc1 {[%emt 0:01:11]} Bb8 {[%emt 0:01:49]} 18. b3 {[%emt 0:01:17]} Bc8 {[%emt 0:02:14]} 19. c4 {[%emt 0:00:25]} exd4 {[%emt 0:00:02]} 20. Nxd4 {[%emt 0:00:30]} d5 {[%emt 0:00:07]} 21. cxd5 {[%emt 0:00:14]} cxd5 {[%emt 0:00:02]} 22. Nb5 {[%emt 0:00:03]} Qc6 {[%emt 0:00:14]} 23. Nd4 {[%emt 0:02:14]} Qc7 {[%emt 0:00:04]} 24. Nb5 {[%emt 0:01:17]} Qc6 {[%emt 0:00:01]} 25. Nd4 {[%emt 0:00:02]} Qc7 {[%emt 0:00:02]} 1/2-1/2